bitfinex/quotes_ETHUSD_20241122
["timestamp","ask_amount","ask_price","bid_price","bid_amount"]
[1732273746817,0.7602,3327.1,3326.7,0.30059]
[1732273747187,3.29314586,3326.9,3326.5,0.3006]
[1732273747521,3.29314586,3326.9,3326.4,0.30062]
[1732273747522,6.70432045,3326.9,3326.4,0.30062]
[1732273748028,6.70432045,3326.9,3326.4,0.60042]
[1732273748713,3.0059,3326.8,3326.2,0.2998]
[1732273748885,3.0059,3326.8,3326.4,0.2998]
[1732273748886,0.67043204,3326.8,3326.4,0.2998]
[1732273749093,0.67043204,3326.8,3326.4,0.60042]
[1732273749698,0.67043204,3326.8,3326.4,0.2998]
[1732273750013,3.81823,3326.5,3326.2,0.2998]
[1732273750211,0.812,3326.5,3326.2,0.2998]
[1732273751423,4.60305881,3326.5,3326.0,0.2998]
[1732273751792,3.00625,3326.4,3326.0,0.2998]
[1732273752788,1.59686881,3326.5,3326.0,0.60046]
[1732273752993,1.59686881,3326.5,3326.2,0.2998]
[1732273753506,1.59686881,3326.5,3326.3,0.30063]
[1732273753704,3.29314586,3326.6,3326.4,0.30062]
[1732273753912,0.8161,3326.8,3326.4,0.30062]
[1732273754098,0.8161,3326.8,3326.5,0.30061]
[1732273754542,0.8161,3326.8,3326.3,0.60125]
[1732273754697,0.8161,3326.8,3326.2,0.4322]
[1732273755031,3.41694459,3326.7,3326.2,0.2998]
[1732273755242,3.29314586,3326.6,3326.2,0.2998]
[1732273755529,3.00618,3326.5,3326.2,0.2998]
[1732273756433,3.29314586,3326.6,3326.2,0.2998]
[1732273756631,0.67100905,3326.5,3326.2,0.2998]
[1732273757001,0.8061,3326.2,3325.8,0.2998]
[1732273757839,0.8061,3326.2,3325.8,0.60047]
[1732273758145,7.10312586,3326.6,3326.1,0.30065]
[1732273758310,3.00617,3326.5,3325.9,0.30066]
[1732273758522,7.81343845,3326.6,3326.0,0.30065]
[1732273758816,7.81343845,3326.6,3326.1,0.30065]
[1732273759123,7.81343845,3326.6,3326.0,0.2998]
[1732273759325,7.81343845,3326.6,3326.1,0.30064]
[1732273759500,7.81343845,3326.6,3326.0,0.60045]
[1732273759924,7.81343845,3326.6,3326.0,0.2998]
[1732273760240,3.00617,3326.5,3326.0,0.2998]
[1732273761462,7.81347845,3326.6,3326.0,0.2998]
[1732273761665,0.48073585,3326.5,3326.0,0.2998]
[1732273761966,0.8039,3326.6,3326.1,0.30064]
[1732273762271,0.7927,3326.9,3326.4,0.30061]
[1732273762560,0.7927,3326.9,3326.2,0.43303]
[1732273762561,0.8043,3327.2,3326.2,0.4322]
[1732273762859,0.8043,3327.2,3326.8,0.2998]
[1732273763061,1.52926277,3327.2,3326.8,0.2998]
[1732273763429,4.53486277,3327.2,3326.8,0.2998]
[1732273763831,1.52926277,3327.2,3326.7,0.2998]
[1732273764024,3.78841486,3327.1,3326.7,0.2998]
[1732273764534,3.78841486,3327.1,3326.3,0.2998]
[1732273764535,3.00595,3326.8,3326.3,0.2998]
[1732273764739,3.00581,3326.9,3326.3,0.2998]
[1732273764740,3.00598,3326.7,3326.3,0.2998]
[1732273765139,3.78239,3326.6,3326.1,0.2998]
[1732273765532,3.78239,3326.6,3326.1,0.60044]
[1732273766242,3.78239,3326.6,3326.0,0.2998]
[1732273766243,7.07553586,3326.6,3326.0,0.2998]
[1732273766432,0.4383569,3326.5,3326.0,0.2998]
[1732273766624,0.4383569,3326.5,3326.1,0.30065]
[1732273766963,0.4383569,3326.5,3326.2,0.30063]
[1732273767260,0.4383569,3326.5,3326.1,0.30065]
[1732273767432,0.4383569,3326.5,3326.2,0.30064]
[1732273768031,0.4383569,3326.5,3326.0,0.2998]
[1732273768032,0.4383569,3326.5,3326.0,0.60045]
[1732273768528,0.4383569,3326.5,3326.1,0.30065]
[1732273768740,0.4383569,3326.5,3326.0,0.2998]
[1732273768945,0.45078028,3326.4,3326.0,0.2998]
[1732273769788,0.45078028,3326.4,3326.0,0.60046]
[1732273770142,0.45078028,3326.4,3326.0,0.2998]
[1732273771244,0.45078028,3326.4,3326.0,0.60046]
[1732273771647,0.45078028,3326.4,3326.0,0.2998]
[1732273771846,4.06944586,3326.6,3326.2,0.30064]
[1732273772359,4.06944586,3326.6,3326.0,0.2998]
[1732273772906,3.00623,3326.5,3326.0,0.2998]
[1732273773478,4.06944586,3326.6,3326.0,0.2998]
[1732273773678,3.00626,3326.4,3326.0,0.2998]
[1732273774073,0.40694459,3326.5,3326.0,0.2998]
[1732273774408,0.40694459,3326.5,3326.0,0.60045]
[1732273774566,0.40694459,3326.5,3325.7,0.2998]
[1732273774763,0.40694459,3326.5,3326.1,0.30064]
[1732273774987,7.07553586,3326.6,3326.1,0.30064]
[1732273775191,4.06944586,3326.6,3326.2,0.2998]
[1732273775703,3.00616,3326.5,3326.2,0.2998]
[1732273775899,0.70756059,3326.4,3326.2,0.2998]
[1732273776101,0.70756059,3326.4,3326.0,0.2998]
[1732273776693,3.71381059,3326.4,3326.0,0.2998]
[1732273778368,3.00639,3326.3,3326.0,0.2998]
[1732273778681,3.67841006,3326.3,3325.9,0.2998]
[1732273778878,0.70756059,3326.4,3325.9,0.2998]
[1732273778879,3.71387059,3326.4,3325.9,0.2998]
[1732273779496,0.70756059,3326.4,3325.9,0.2998]
[1732273779672,3.71390059,3326.4,3326.0,0.2998]
[1732273780106,0.70756059,3326.4,3326.0,0.2998]
[1732273780408,0.70756059,3326.4,3326.0,0.60045]
[1732273781405,0.37137706,3326.3,3325.8,0.2998]
[1732273781599,3.71381059,3326.4,3325.8,0.2998]
[1732273781812,0.70756059,3326.4,3326.0,0.2998]
[1732273781967,7.07559586,3326.6,3326.0,0.60045]
[1732273782801,3.00618,3326.5,3326.0,0.2998]
[1732273783679,3.00634,3326.3,3326.0,0.2998]
[1732273783909,4.06944586,3326.6,3325.6,0.4322]
[1732273783910,3.307064,3326.2,3325.6,0.4322]
[1732273784209,3.00643,3326.2,3325.6,0.4322]
[1732273784367,3.00666,3326.0,3325.6,0.2998]
[1732273784575,0.300666,3325.9,3325.0,0.1324]
[1732273784776,3.00689,3325.7,3325.1,0.30074]
[1732273784966,6.29999586,3325.8,3325.2,0.2998]
[1732273784967,3.00698,3325.6,3325.2,0.2998]
[1732273785405,0.62999959,3325.7,3325.2,0.2998]
[1732273785612,0.62999959,3325.7,3325.4,0.30071]
[1732273785924,6.81573,3326.0,3325.4,0.30071]
[1732273786282,3.00674,3325.9,3325.4,0.30071]
[1732273786487,3.80904,3326.0,3325.4,0.30071]
[1732273786785,0.71021859,3325.9,3325.4,0.30071]
[1732273786988,0.71021859,3325.9,3325.2,0.60052]
[1732273787186,0.71021859,3325.9,3325.4,0.30071]
[1732273787483,3.71697859,3325.9,3325.3,0.30072]
[1732273787678,0.71021859,3325.9,3325.4,0.30071]
[1732273788179,3.83734,3326.3,3325.6,0.30069]
[1732273788393,3.00643,3326.2,3325.7,0.30068]
[1732273788716,0.383743,3326.1,3325.7,0.30068]
[1732273789069,0.383743,3326.1,3325.8,0.30067]
[1732273789274,3.83736,3326.3,3325.6,0.60137]
[1732273789475,3.83736,3326.3,3325.6,0.30068]
[1732273790000,3.83736,3326.3,3325.7,0.30068]
[1732273790201,0.71305059,3326.2,3325.6,0.30068]
[1732273790499,0.71305059,3326.2,3325.3,0.2998]
[1732273790500,6.29995586,3325.8,3325.3,0.2998]
[1732273790700,0.93067059,3325.7,3325.3,0.2998]
[1732273791713,6.94455059,3325.7,3325.2,0.2998]
[1732273792010,3.93759059,3325.7,3325.2,0.2998]
[1732273792213,0.93067059,3325.7,3325.3,0.30072]
[1732273792577,3.00683,3325.8,3325.3,0.30072]
[1732273793782,3.00676,3325.9,3325.3,0.30072]
[1732273794114,3.00676,3325.9,3325.3,0.30071]
[1732273794586,3.00682,3325.8,3325.3,0.30071]
[1732273795131,3.71245559,3325.9,3325.4,0.30071]
[1732273795985,3.29314586,3326.1,3325.6,0.30068]
[1732273796391,6.29969586,3326.1,3325.6,0.30068]
[1732273797122,3.00663,3326.0,3325.4,0.60051]
[1732273797323,0.62997759,3325.9,3325.5,0.30069]
[1732273797491,0.62997759,3325.9,3325.6,0.30069]
[1732273798755,0.62997759,3325.9,3325.4,0.60051]
[1732273799438,0.36366376,3325.8,3325.4,0.2998]
[1732273799721,0.36366376,3325.8,3325.4,0.60051]
[1732273799923,0.62997759,3325.9,3325.4,0.2998]
[1732273800102,0.62997759,3325.9,3325.5,0.3007]
[1732273800495,0.62997759,3325.9,3325.4,0.2998]
[1732273800838,3.63667759,3325.9,3325.4,0.60051]
[1732273801133,0.36366776,3325.8,3325.4,0.60051]
[1732273801830,0.62997759,3325.9,3325.4,0.60051]
[1732273802036,0.62997759,3325.9,3325.5,0.3007]
[1732273802324,0.62997759,3325.9,3325.7,0.30068]
[1732273802547,3.79596,3326.3,3325.8,0.43307]
[1732273802933,3.79596,3326.3,3324.8,0.33083229]
[1732273802934,3.00652,3326.1,3325.4,0.73291]
[1732273803109,3.00652,3326.1,3325.4,0.7329]
[1732273803310,3.00684,3325.8,3325.4,0.2998]
[1732273803633,3.82944,3325.8,3325.4,0.2998]
[1732273803854,0.683619,3325.7,3325.4,0.2998]
[1732273804019,0.8226,3326.1,3325.7,0.30068]
[1732273804208,0.8226,3326.1,3325.6,0.57839]
[1732273804410,3.00676,3325.9,3325.6,0.2998]
[1732273804608,6.01329,3326.0,3325.6,0.2998]
[1732273804841,3.00661,3326.0,3325.6,0.2998]
[1732273805025,0.8226,3326.1,3325.7,0.30068]
[1732273805230,3.00595,3326.8,3325.7,0.30068]
[1732273805231,3.80769,3326.6,3326.0,0.30065]
[1732273805407,6.81384,3326.6,3326.0,0.30066]
[1732273805614,0.8016,3326.6,3325.8,0.2998]
[1732273805932,4.09674586,3327.1,3326.6,0.30059]
[1732273806905,4.09674586,3327.1,3326.6,0.60118]
[1732273807105,0.71023159,3327.0,3326.8,0.30058]
[1732273807324,3.43997766,3327.4,3326.9,0.30057]
[1732273807551,0.42262777,3327.3,3326.7,0.43299]
[1732273807847,3.42806777,3327.3,3326.8,0.30058]
[1732273808152,0.1468318,3327.4,3327.0,0.30057]
[1732273808769,0.1468318,3327.4,3327.0,0.30056]
[1732273808903,0.1468318,3327.4,3326.7,0.1324]
[1732273808904,0.1468318,3327.4,3327.2,0.30054]
[1732273809303,0.1468318,3327.4,3326.9,0.30057]
[1732273809506,0.1468318,3327.4,3326.9,0.60037]
[1732273810118,0.1468318,3327.4,3326.9,0.30057]
[1732273810319,0.79135357,3327.4,3326.9,0.30057]
[1732273810519,0.79135357,3327.4,3327.2,0.1324]
[1732273810759,0.1468318,3327.4,3327.2,0.1324]
[1732273810921,0.1468318,3327.4,3327.2,0.43294]
[1732273812922,0.1468318,3327.4,3327.2,0.30054]
[1732273813264,0.1468318,3327.4,3327.0,0.30056]
[1732273813424,0.79134657,3327.4,3327.0,0.30056]
[1732273814267,0.79134657,3327.4,3327.2,0.30054]
[1732273814465,0.79134657,3327.4,3327.3,0.30054]
[1732273815362,0.1468318,3327.4,3327.3,0.43294]
[1732273817639,0.1468318,3327.4,3327.3,0.30054]
[1732273818242,0.1468318,3327.4,3327.1,0.30055]
[1732273818933,0.1468318,3327.4,3326.9,0.30057]
[1732273819134,0.49082957,3327.4,3326.9,0.30057]
[1732273819368,0.49082957,3327.4,3326.7,0.30059]
[1732273819369,3.29314586,3327.3,3326.7,0.30059]
[1732273819571,0.7999,3327.2,3326.7,0.30059]
[1732273820050,0.7999,3327.2,3326.8,0.2998]
[1732273820253,1.55883154,3327.2,3326.8,0.2998]
[1732273820464,3.49617957,3327.4,3326.8,0.60038]
[1732273820642,3.00549,3327.3,3326.8,0.2998]
[1732273820837,0.49082957,3327.4,3326.9,0.30057]
[1732273821185,0.42992296,3327.3,3327.0,0.30056]
[1732273821473,0.49082957,3327.4,3327.0,0.30056]
[1732273822170,0.49082957,3327.4,3326.7,0.60039]
[1732273822380,3.49622957,3327.4,3326.9,0.60037]
[1732273822549,3.49622957,3327.4,3326.9,0.2998]
[1732273822750,3.00544,3327.3,3326.9,0.2998]
[1732273822935,0.65016696,3327.2,3326.9,0.2998]
[1732273823683,0.7733,3326.9,3326.4,0.30061]
[1732273823886,0.7733,3326.9,3326.2,0.30063]
[1732273823887,3.00589,3326.8,3326.2,0.30063]
[1732273824039,3.00621,3326.5,3325.9,0.30066]
[1732273824742,6.29918586,3326.7,3325.9,0.30066]
[1732273824948,0.37791,3326.8,3326.3,0.30062]
[1732273825152,3.77913,3326.9,3326.3,0.30062]
[1732273825153,0.7733,3326.9,3326.7,0.30059]
[1732273825350,3.00558,3327.2,3326.6,0.6004]
[1732273825554,3.00562,3327.1,3326.6,0.6004]
[1732273825761,1.49314354,3327.2,3326.6,0.2998]
[1732273825970,3.00566,3327.1,3326.6,0.2998]
[1732273826175,0.44988035,3327.0,3326.6,0.2998]
[1732273826385,0.44988035,3327.0,3326.6,0.6004]
[1732273826537,4.49872354,3327.2,3326.6,0.6004]
[1732273827031,3.00563,3327.1,3326.6,0.2998]
[1732273827235,4.49872354,3327.2,3326.7,0.30059]
[1732273827236,1.49314354,3327.2,3326.7,0.30059]
[1732273827561,0.8142,3327.2,3326.8,0.30058]
[1732273827968,3.81974,3327.2,3326.6,0.6004]
[1732273828483,3.81974,3327.2,3326.7,0.30059]
[1732273828833,1.01183759,3327.1,3326.7,0.30059]
[1732273828985,3.29314586,3326.9,3326.1,0.73284]
[1732273829142,6.29899586,3326.9,3326.4,0.2998]
[1732273829981,3.00598,3326.7,3326.4,0.2998]
[1732273830142,3.00594,3326.8,3326.5,0.2998]
[1732273830340,0.51283523,3326.7,3326.5,0.2998]
[1732273832052,0.51283523,3326.7,3325.8,0.43307]
[1732273832053,3.0063,3326.4,3325.8,0.43307]
[1732273832379,4.18638852,3326.6,3325.8,0.43307]
[1732273832597,0.8284,3326.6,3325.8,0.1324]
[1732273832758,3.00627,3326.4,3325.8,0.1324]
[1732273832957,3.00627,3326.4,3325.9,0.2998]
[1732273833159,3.306977,3326.3,3325.9,0.2998]
[1732273833360,3.00622,3326.5,3325.9,0.60046]
[1732273833584,3.00622,3326.5,3325.9,0.2998]
[1732273833821,4.12154586,3326.6,3326.0,0.30066]
[1732273833997,4.12154586,3326.6,3325.9,0.2998]
[1732273833998,4.09294586,3326.9,3325.9,0.2998]
[1732273834162,0.7998,3326.9,3326.3,0.30063]
[1732273834786,0.7998,3326.9,3326.5,0.30061]
[1732273835077,0.7998,3326.9,3326.3,0.60125]
[1732273835298,0.380555,3326.8,3326.3,0.30062]
[1732273835497,0.380555,3326.8,3326.4,0.30061]
[1732273835997,0.7998,3326.9,3326.5,0.30061]
[1732273836999,0.7998,3326.9,3326.3,0.1324]
[1732273837396,3.8056,3326.9,3326.4,0.30062]
[1732273837599,1.18036,3326.9,3326.4,0.30062]
[1732273837899,0.7998,3326.9,3326.5,0.30061]
[1732273838117,7.09721586,3327.2,3326.4,0.30062]
[1732273838265,7.09721586,3327.2,3326.7,0.30059]
[1732273838467,0.70972159,3327.1,3326.7,0.30059]
[1732273838663,0.70972159,3327.1,3326.8,0.30058]
[1732273838974,3.1521818,3327.4,3326.9,0.30057]
[1732273839170,0.1468318,3327.4,3327.0,0.30056]
[1732273839364,1.17172157,3327.4,3327.3,0.30054]
[1732273839571,0.1468318,3327.4,3327.3,0.30054]
[1732273840905,0.1468318,3327.4,3327.3,0.43294]
[1732273841295,0.1468318,3327.4,3327.0,0.1324]
[1732273841587,0.1468318,3327.4,3327.0,0.73276]
[1732273841800,0.1468318,3327.4,3327.0,0.4322]
[1732273842026,0.46204098,3327.4,3327.0,0.73276]
[1732273842196,0.46204098,3327.4,3327.1,0.30056]
[1732273842197,0.1468318,3327.4,3327.1,0.30056]
[1732273842397,0.1468318,3327.4,3327.1,0.60111]
[1732273842605,0.1468318,3327.4,3327.1,0.30055]
[1732273843327,0.1468318,3327.4,3327.0,0.4322]
[1732273843528,0.1468318,3327.4,3327.0,0.73276]
[1732273844026,0.1468318,3327.4,3327.1,0.30056]
[1732273844530,0.1468318,3327.4,3327.0,0.4322]
[1732273844531,0.1468318,3327.4,3327.3,0.30054]
[1732273848036,0.1468318,3327.4,3327.0,0.1324]
[1732273848244,0.1468318,3327.4,3326.9,0.60114]
[1732273848245,0.8069,3327.3,3326.9,0.2998]
[1732273848447,0.8069,3327.3,3326.9,0.60037]
[1732273848744,3.00558,3327.2,3326.7,0.1324]
[1732273848962,3.00571,3327.0,3326.5,0.30061]
[1732273849236,3.00571,3327.0,3326.5,0.60041]
[1732273849437,3.93615359,3327.0,3326.5,0.60041]
[1732273850757,0.93044359,3327.0,3326.7,0.30059]
[1732273850907,3.29314586,3327.2,3326.8,0.30058]
[1732273851105,3.29314586,3327.2,3326.7,0.30059]
[1732273851447,3.29314586,3327.2,3326.8,0.30058]
[1732273851613,4.3914399,3327.2,3326.8,0.30058]
[1732273852003,4.3914399,3327.2,3326.6,0.60039]
[1732273852204,4.3914399,3327.2,3326.7,0.30059]
[1732273852842,1.09829404,3327.2,3326.7,0.30059]
[1732273853036,3.81236,3327.3,3326.6,0.2998]
[1732273853337,3.00562,3327.1,3326.6,0.2998]
[1732273853640,0.8069,3327.3,3326.7,0.30059]
[1732273854236,0.39591518,3327.2,3326.6,0.6004]
[1732273854450,0.39591518,3327.2,3326.7,0.30059]
[1732273854760,0.39591518,3327.2,3326.8,0.30058]
[1732273856343,0.42082552,3327.1,3326.8,0.30058]
[1732273856844,0.42082552,3327.1,3326.4,0.1324]
[1732273856845,3.42644552,3327.1,3326.6,0.2998]
[1732273857013,3.00574,3327.0,3326.6,0.2998]
[1732273857226,0.34265655,3326.9,3326.6,0.6004]
[1732273857422,3.00559,3327.2,3326.6,0.6004]
[1732273857731,0.7945,3326.8,3326.1,0.4322]
[1732273857931,4.08764586,3326.8,3326.3,0.2998]
[1732273858137,3.00605,3326.7,3326.3,0.2998]
[1732273858921,3.00605,3326.7,3326.2,0.60044]
[1732273859066,4.08764586,3326.8,3326.2,0.60044]
[1732273859277,7.80289345,3326.8,3326.2,0.60044]
[1732273859428,7.80289345,3326.8,3326.4,0.2998]
[1732273859634,7.07810586,3327.1,3326.5,0.30061]
[1732273859872,7.07810586,3327.1,3326.4,0.2998]
[1732273860035,3.00581,3326.9,3326.4,0.2998]
[1732273860226,0.300581,3326.8,3326.4,0.2998]
[1732273860430,3.306471,3326.8,3326.3,0.60042]
[1732273860630,3.00603,3326.7,3326.3,0.2998]
[1732273860852,3.00607,3326.6,3326.3,0.2998]
[1732273861133,3.00607,3326.6,3325.9,0.30066]
[1732273861134,7.07862586,3326.5,3325.9,0.30066]
[1732273861435,3.00626,3326.4,3325.9,0.30066]
[1732273861629,7.67983586,3326.5,3325.9,0.30066]
[1732273862078,3.00628,3326.4,3325.9,0.30066]
[1732273862233,4.67365586,3326.5,3325.9,0.30066]
[1732273862432,4.67365586,3326.5,3326.1,0.30064]
[1732273862663,4.67365586,3326.5,3326.0,0.30065]
[1732273862850,7.67981586,3326.5,3326.0,0.30065]
[1732273863051,4.67365586,3326.5,3325.8,0.4322]
[1732273863282,1.38051,3326.5,3326.1,0.30064]
[1732273863484,3.29314586,3326.8,3326.3,0.30062]
[1732273863786,6.29903586,3326.8,3326.1,0.30064]
[1732273863984,3.00599,3326.7,3326.2,0.30064]
[1732273864144,3.29314586,3326.5,3325.9,0.60046]
[1732273864343,3.29314586,3326.5,3326.1,0.30065]
[1732273864767,9.30555586,3326.5,3325.9,0.30066]
[1732273864966,4.69651559,3326.4,3325.9,0.30066]
[1732273865644,1.69025559,3326.4,3326.0,0.30066]
[1732273865844,0.7597,3326.4,3326.0,0.30066]
[1732273866285,0.7597,3326.4,3325.7,0.60048]
[1732273866592,3.76595,3326.4,3325.8,0.2998]
[1732273866879,3.00636,3326.3,3325.8,0.2998]
[1732273867053,4.01288559,3326.3,3325.8,0.60047]
[1732273867440,4.01288559,3326.3,3325.6,0.1324]
[1732273867441,3.29314586,3326.2,3325.7,0.2998]
[1732273867646,0.42996915,3326.1,3325.7,0.2998]
[1732273867856,3.29314586,3326.2,3325.7,0.2998]
[1732273868051,3.766,3326.4,3325.9,0.30067]
[1732273868255,0.7597,3326.4,3326.0,0.30065]
[1732273868486,3.29314586,3326.5,3326.1,0.30065]
[1732273868994,3.29314586,3326.5,3326.1,0.30064]
[1732273869278,0.8189,3326.7,3326.3,0.30063]
[1732273869441,3.29314586,3327.1,3326.2,0.1324]
[1732273869785,3.29314586,3327.1,3326.4,0.30062]
[1732273869786,3.00577,3327.0,3326.4,0.30062]
[1732273869942,3.00577,3327.0,3326.5,0.2998]
[1732273870148,0.31522818,3327.2,3326.5,0.2998]
[1732273870149,0.8017,3326.7,3326.5,0.2998]
[1732273870479,3.00607,3326.6,3326.5,0.2998]
[1732273870665,3.00607,3326.6,3325.9,0.2998]
[1732273870880,3.00645,3326.2,3325.7,0.1324]
[1732273871063,3.00625,3326.4,3325.7,0.1324]
[1732273871544,3.67392286,3326.5,3326.0,0.30066]
[1732273871545,6.68008286,3326.5,3326.0,0.30066]
[1732273871745,3.37364229,3326.4,3325.9,0.30066]
[1732273872085,3.37364229,3326.4,3326.0,0.505]
[1732273872578,3.37364229,3326.4,3326.0,0.80565]
[1732273872579,0.36739229,3326.4,3326.0,0.80565]
[1732273872800,0.36605382,3326.3,3326.0,0.80565]
[1732273873145,0.36605382,3326.3,3326.0,0.505]
[1732273874457,0.36605382,3326.3,3326.0,0.80565]
[1732273874656,0.36605382,3326.3,3326.1,0.30064]
[1732273875398,0.36605382,3326.3,3326.0,0.505]
[1732273876291,0.33723238,3326.2,3326.0,0.505]
[1732273877091,3.34367238,3326.2,3326.0,0.505]
[1732273877386,3.34371238,3326.2,3326.0,0.505]
[1732273877556,3.34372238,3326.2,3326.0,0.36011098]
[1732273877763,3.37749762,3326.1,3326.0,0.36011098]
[1732273877971,0.37097762,3326.1,3326.0,0.36011098]
[1732273878192,0.36605382,3326.3,3326.0,0.36011098]
[1732273878500,3.37246382,3326.3,3326.0,0.36011098]
[1732273878669,0.756,3326.2,3326.0,0.36011098]
[1732273879177,3.76243,3326.2,3326.0,0.36011098]
[1732273879357,0.36605382,3326.3,3326.0,0.36011098]
[1732273880192,3.37241382,3326.3,3326.1,0.2998]
[1732273880391,0.33724138,3326.2,3326.1,0.2998]
[1732273883375,3.34367138,3326.2,3326.1,0.2998]
[1732273884058,3.34367138,3326.2,3326.0,0.36011098]
[1732273884259,3.00652,3326.1,3326.0,0.20510001]
[1732273884469,3.75988452,3326.1,3326.0,0.20510001]
[1732273884680,4.00523859,3326.1,3326.0,0.20510001]
[1732273884992,4.82453859,3326.1,3326.0,0.20510001]
[1732273885808,4.57918452,3326.1,3326.0,0.20510001]
[1732273885962,4.82449525,3326.1,3326.0,0.20510001]
[1732273886163,4.57918452,3326.1,3326.0,0.20510001]
[1732273886378,5.21715401,3326.1,3326.0,0.20510001]
[1732273886586,4.8245574,3326.1,3326.0,0.20510001]
[1732273887910,4.0052574,3326.1,3326.0,0.20510001]
[1732273888058,4.39757109,3326.1,3326.0,0.20510001]
[1732273888267,0.9987374,3326.1,3326.0,0.20510001]
[1732273888956,0.33724138,3326.2,3326.0,0.20510001]
[1732273889087,0.36605382,3326.3,3326.0,0.20510001]
[1732273889274,3.37241382,3326.3,3326.0,0.20510001]
[1732273889799,0.36605382,3326.3,3326.0,0.20510001]
[1732273890203,0.36605382,3326.3,3326.1,0.2998]
[1732273891082,0.36605382,3326.3,3326.2,0.20510001]
[1732273891422,0.7764,3326.6,3326.2,0.20510001]
[1732273891706,0.24522765,3326.5,3326.2,0.20510001]
[1732273892111,3.25138765,3326.5,3326.2,0.20510001]
[1732273892323,3.00625,3326.4,3326.2,0.20510001]
[1732273893699,3.00611,3326.6,3326.2,0.20510001]
[1732273893878,0.24522379,3326.5,3326.2,0.20510001]
[1732273894190,0.24522379,3326.4,3326.2,0.20510001]
[1732273894517,6.29314586,3326.7,3326.2,0.20510001]
[1732273894811,0.95597417,3326.6,3326.2,0.20510001]
[1732273895014,0.24523958,3326.5,3326.2,0.20510001]
[1732273895181,0.24523958,3326.5,3326.2,0.50574001]
[1732273895513,0.24523958,3326.5,3326.3,0.30062]
[1732273895684,3.82014,3326.8,3326.3,0.30062]
[1732273895891,0.6272713,3326.7,3326.3,0.60042]
[1732273896079,0.2452573,3326.6,3326.5,0.30061]
[1732273896276,3.82534,3327.2,3326.6,0.6004]
[1732273896277,0.39244345,3327.1,3326.6,0.6004]
[1732273896482,0.95715721,3327.1,3326.6,0.6004]
[1732273896685,0.24530862,3327.0,3326.6,0.2998]
[1732273896922,3.25101862,3327.0,3326.6,0.2998]
[1732273897085,3.78453072,3327.0,3326.6,0.2998]
[1732273897497,3.00583,3326.9,3326.5,0.2998]
[1732273897713,0.77882072,3327.0,3326.5,0.2998]
[1732273897910,0.24531391,3326.9,3326.5,0.60041]
[1732273898219,3.00585,3326.9,3326.5,0.2998]
[1732273898528,3.00593,3326.8,3326.5,0.2998]
[1732273900025,3.306376,3326.9,3326.5,0.2998]
[1732273900404,3.00589,3326.8,3326.5,0.2998]
[1732273901541,3.006,3326.7,3326.5,0.2998]
[1732273902316,6.01172,3326.9,3326.5,0.2998]
[1732273902635,3.00584,3326.9,3326.5,0.2998]
[1732273903008,3.00565,3327.1,3326.5,0.2998]
[1732273903203,0.62775486,3327.0,3326.5,0.6004]
[1732273903432,0.382545,3327.0,3326.5,0.6004]
[1732273903642,3.00565,3327.1,3326.5,0.90101]
[1732273903804,3.00565,3327.1,3326.5,0.6004]
[1732273904009,3.25091425,3327.0,3326.5,0.6004]
[1732273904205,3.00565,3327.1,3326.5,0.2998]
[1732273904435,3.00592,3326.8,3326.6,0.50490001]
[1732273904802,3.00574,3327.0,3326.6,0.50490001]
[1732273908429,3.00565,3327.1,3326.6,0.80550001]
[1732273909038,3.1522218,3327.4,3326.8,0.2998]
[1732273909224,0.1468318,3327.4,3327.0,0.2998]
[1732273909424,0.1468318,3327.4,3327.1,0.4322]
[1732273909666,0.1468318,3327.4,3327.1,0.73275]
[1732273911524,0.1468318,3327.4,3327.1,1.0333]
[1732273911726,0.1468318,3327.4,3327.1,0.73275]
[1732273912021,0.1468318,3327.4,3327.3,0.30054]
[1732273912224,0.1468318,3327.4,3327.3,0.60034]
[1732273912721,0.1468318,3327.4,3327.3,0.2998]
[1732273913260,0.1468318,3327.4,3327.2,0.2998]
[1732273914956,0.1468318,3327.4,3327.2,0.60035]
[1732273915685,0.1468318,3327.4,3327.3,0.60034]
[1732273916182,0.1468318,3327.4,3327.3,0.2998]
[1732273916765,0.1468318,3327.4,3327.3,0.60034]
[1732273918051,0.1468318,3327.4,3327.3,0.2998]
[1732273919087,3.1521718,3327.4,3327.3,0.2998]
[1732273919303,0.1468318,3327.4,3327.1,0.2998]
[1732273920863,3.00546,3327.3,3327.1,0.2998]
[1732273921067,3.00546,3327.3,3327.0,0.50490001]
[1732273921068,3.00562,3327.1,3327.0,0.50490001]
[1732273921250,3.75842,3327.1,3327.0,0.50490001]
[1732273921451,3.55331999,3327.1,3327.0,0.2998]
[1732273921657,3.00598,3326.7,3326.3,0.1324]
[1732273921962,4.56422564,3326.8,3326.0,0.43305]
[1732273922164,4.56422564,3326.8,3326.3,0.2998]
[1732273922569,1.55831564,3326.8,3326.3,0.2998]
[1732273922793,3.00617,3326.5,3326.3,0.2998]
[1732273923154,3.00617,3326.5,3326.1,0.2998]
[1732273924054,3.76567,3326.5,3326.1,0.2998]
[1732273924267,0.7595,3326.5,3325.8,0.2998]
[1732273924589,3.00655,3326.1,3325.8,0.2998]
[1732273925289,3.00655,3326.1,3325.7,0.2998]
[1732273926088,4.05317488,3326.5,3325.7,0.2998]
[1732273926286,3.00659,3326.1,3325.7,0.2998]
[1732273926457,3.00662,3326.0,3325.6,0.2998]
[1732273927063,3.82162,3326.0,3325.6,0.2998]
[1732273927953,0.815,3326.0,3325.6,0.2998]
[1732273928501,0.815,3326.0,3325.6,0.60049]
[1732273928999,0.7636,3326.2,3325.6,0.60049]
[1732273929174,0.7636,3326.2,3325.7,0.30068]
[1732273929557,3.00657,3326.1,3325.6,0.2998]
[1732273930068,3.7698,3326.5,3325.5,0.1324]
[1732273930274,3.29367488,3326.8,3326.0,0.1324]
[1732273930275,3.00613,3326.6,3326.0,0.1324]
[1732273930483,3.00613,3326.6,3326.0,0.43305]
[1732273931079,6.01184,3326.8,3326.1,0.30064]
[1732273931282,3.683524,3326.7,3326.1,0.30064]